lending/lending_fUSD_20240507
["ID","MTS","AMOUNT","RATE_DAILY","PERIOD"]
[326597605,1715123444446,-500.0,0.00022365,2]
[326597608,1715123444456,-500.0,0.00022365,2]
[326597610,1715123444466,-500.0,0.00022438,10]
[326597612,1715123444476,-500.0,0.00022438,10]
[326597614,1715123444485,-541.0,0.00022438,10]
[326597616,1715123444495,-157.050808,0.00022448,2]
[326597618,1715123444507,-598.56594166,0.00022454,2]
[326597619,1715123444517,-150.0,0.00022466,5]
[326597621,1715123444527,-1500.0,0.000225,2]
[326597623,1715123444537,-150.0,0.000225,3]
[326597626,1715123444547,-400.0,0.00022505,2]
[326597628,1715123444557,-500.0,0.00022539,2]
[326597630,1715123444568,-500.0,0.00022539,2]
[326597632,1715123444578,-500.0,0.00022539,2]
[326597634,1715123444587,-500.0,0.00022539,2]
[326597636,1715123444598,-1107.85,0.00022539,2]
[326597638,1715123444608,-995.0,0.00022566,2]
[326597640,1715123444618,-646.21,0.00022639,2]
[326597642,1715123444628,-597.83,0.00022639,2]
[326597644,1715123444638,-500.0,0.00022639,2]
[326597646,1715123444648,-500.0,0.00022639,2]
[326597648,1715123444659,-742.01,0.00022639,2]
[326597650,1715123444668,-533.49,0.00022639,2]
[326597652,1715123444678,-862.44,0.00022639,2]
[326597654,1715123444688,-500.0,0.00022639,2]
[326597656,1715123444698,-500.0,0.00022639,2]
[326597658,1715123444709,-556.71325773,0.00022639,2]
[326597660,1715123444719,-500.0,0.00022639,2]
[326597662,1715123444729,-500.0,0.00022639,2]
[326597664,1715123444740,-500.0,0.00022639,2]
[326597667,1715123444751,-1443.74,0.00022639,2]
[326597668,1715123444766,-2034.57,0.00022639,2]
[326597670,1715123444776,-500.0,0.00022639,2]
[326597672,1715123444786,-500.0,0.00022639,2]
[326597674,1715123444796,-1140.78,0.00022639,2]
[326597677,1715123444807,-200.77716568,0.00022639,2]
[326597679,1715123444816,-500.0,0.00022639,2]
[326597681,1715123444826,-500.0,0.00022639,2]
[326597683,1715123444835,-165.0,0.0002266,11]
[326597684,1715123444845,-153.87301583,0.00022685,10]
[326597687,1715123444856,-1561.57283666,0.00022723,2]
[326597689,1715123444866,-150.0,0.0002273,2]
[326597691,1715123444876,-150.0,0.00022736,2]
[326597692,1715123444885,-150.0,0.00022738,2]
[326597694,1715123444895,-150.0,0.00022738,2]
[326597696,1715123444905,-150.0,0.00022742,2]
[326597698,1715123444915,-157.050808,0.00022748,2]
[326597700,1715123444925,-150.0,0.00022749,2]
[326597703,1715123444936,-150.0,0.00022751,2]
[326597705,1715123444946,-150.0,0.00022752,2]
[326597707,1715123444956,-150.0,0.00022758,2]
[326597709,1715123444965,-150.0,0.0002276,2]
[326597711,1715123444977,-174.81357041,0.00022769,2]
[326597713,1715123444986,-150.0,0.00022769,2]
[326597715,1715123444996,-150.0,0.00022774,2]
[326597717,1715123445009,-150.0,0.00022774,2]
[326597722,1715123445050,-150.0,0.00022777,2]
[326597724,1715123445060,-150.0,0.00022788,2]
[326597726,1715123445070,-150.0,0.00022788,2]
[326597728,1715123445081,-150.0,0.0002279,2]
[326597730,1715123445090,-150.0,0.0002279,2]
[326597732,1715123445100,-150.0,0.0002279,2]
[326597734,1715123445110,-10117.98303871,0.00022791,2]
[326597736,1715123445120,-150.0,0.00022794,2]
[326597738,1715123445130,-150.0,0.00022796,2]
[326597740,1715123445141,-875.314559,0.000228,2]
[326597742,1715123445151,-1004.0,0.000228,2]
[326597744,1715123445162,-150.0,0.00022803,2]
[326597746,1715123445176,-150.0,0.00022808,2]
[326597748,1715123445186,-150.0,0.00022809,2]
[326597750,1715123445195,-150.0,0.00022811,2]
[326597752,1715123445205,-632.73372076,0.00022813,2]
[326597754,1715123445215,-500.0,0.00022813,2]
[326597756,1715123445226,-500.0,0.00022813,2]
[326597758,1715123445235,-500.0,0.00022813,2]
[326597760,1715123445246,-1107.85,0.00022813,2]
[326597762,1715123445258,-200.0,0.00022814,2]
[326597764,1715123445268,-500.0,0.00022814,2]
[326597766,1715123445279,-200.0,0.00022815,2]
[326597768,1715123445290,-500.0,0.00022815,2]
[326597770,1715123445300,-500.0,0.00022815,2]
[326597772,1715123445311,-200.0,0.00022815,2]
[326597774,1715123445320,-150.0,0.00022816,2]
[326597775,1715123445332,-150.0,0.00022819,2]
[326597776,1715123445342,-150.0,0.00022823,2]
[326597777,1715123445352,-150.0,0.00022826,2]
[326597778,1715123445362,-150.0,0.00022826,2]
[326597779,1715123445372,-150.0,0.00022827,2]
[326597780,1715123445382,-150.0,0.00022828,2]
[326597781,1715123445392,-150.0,0.00022831,2]
[326597782,1715123445402,-150.0,0.00022832,2]
[326597783,1715123445412,-150.0,0.00022835,2]
[326597784,1715123445422,-150.0,0.00022836,2]
[326597785,1715123445432,-150.0,0.00022837,2]
[326597786,1715123445442,-150.0,0.00022841,2]
[326597787,1715123445452,-150.0,0.00022843,2]
[326597788,1715123445463,-150.0,0.00022852,2]
[326597789,1715123445472,-150.0,0.00022853,2]
[326597790,1715123445482,-150.0,0.00022854,2]
[326597791,1715123445492,-150.0,0.00022856,2]
[326597792,1715123445502,-150.0,0.00022862,2]
[326597793,1715123445514,-150.0,0.00022869,2]
[326597794,1715123445524,-150.0,0.0002287,2]
[326597796,1715123445534,-150.0,0.00022876,2]
[326597798,1715123445544,-159.95281396,0.00022882,2]
[326597800,1715123445554,-150.0,0.00022888,2]
[326597802,1715123445565,-150.0,0.00022889,2]
[326597804,1715123445575,-150.0,0.00022896,2]
[326597806,1715123445587,-150.0,0.00022898,2]
[326597808,1715123445597,-150.0,0.00022901,2]
[326597810,1715123445607,-150.0,0.00022901,2]
[326597812,1715123445617,-150.0,0.00022903,2]
[326597814,1715123445628,-150.0,0.00022903,2]
[326597816,1715123445638,-150.0,0.00022904,2]
[326597818,1715123445648,-150.0,0.00022907,2]
[326597820,1715123445658,-150.0,0.00022908,2]
[326597822,1715123445669,-150.0,0.00022908,2]
[326597824,1715123445679,-646.21,0.00022913,2]
[326597826,1715123445689,-597.83,0.00022913,2]
[326597828,1715123445700,-500.0,0.00022913,2]
[326597830,1715123445711,-500.0,0.00022913,2]
[326597832,1715123445721,-742.01,0.00022913,2]
[326597834,1715123445731,-533.49,0.00022913,2]
[326597836,1715123445741,-862.44,0.00022913,2]
[326597838,1715123445751,-500.0,0.00022913,2]
[326597840,1715123445762,-425.32398059,0.00022913,2]
[326597842,1715123445772,-500.0,0.00022913,2]
[326597844,1715123445782,-361.23,0.00022913,2]
[326597846,1715123445793,-500.0,0.00022913,2]
[326597848,1715123445804,-1443.74,0.00022913,2]
[326597850,1715123445815,-2034.57,0.00022913,2]
[326597852,1715123445825,-511.0368283,0.00022913,2]
[326597854,1715123445835,-500.0,0.00022913,2]
[326597856,1715123445845,-1140.78,0.00022913,2]
[326597858,1715123445855,-500.0,0.00022913,2]
[326597860,1715123445865,-500.0,0.00022913,2]
[326597862,1715123445876,-150.0,0.00022914,2]
[326597864,1715123445886,-150.0,0.00022915,2]
[326597866,1715123445896,-150.0,0.00022916,2]
[326597868,1715123445906,-150.0,0.00022917,2]
[326597870,1715123445916,-150.0,0.00022919,2]
[326597872,1715123445927,-150.0,0.0002292,2]
[326597875,1715123445937,-150.0,0.00022921,2]
[326597877,1715123445947,-150.0,0.00022922,2]
[326597878,1715123445978,-217.21750578,0.0002293,2]
[326597879,1715123445989,-150.0,0.00022931,2]
[326597880,1715123445999,-150.0,0.00022931,4]
[326597881,1715123446011,-150.0,0.00022931,4]
[326597882,1715123446021,-150.0,0.00022931,4]
[326597883,1715123446031,-150.0,0.00022931,4]
[326597884,1715123446042,-150.0,0.00022934,2]
[326597885,1715123446051,-150.0,0.00022934,2]
[326597886,1715123446062,-150.0,0.00022937,2]
[326597887,1715123446072,-150.0,0.00022943,2]
[326597888,1715123446082,-150.0,0.00022944,2]
[326597889,1715123446092,-150.0,0.00022949,2]
[326597890,1715123446104,-150.0,0.00022953,2]
[326597891,1715123446114,-150.0,0.00022954,2]
[326597892,1715123446124,-150.0,0.00022955,2]
[326597893,1715123446134,-150.0,0.00022956,2]
[326597894,1715123446144,-150.0,0.00022956,2]
[326597896,1715123446154,-150.0,0.00022957,2]
[326597898,1715123446164,-150.0,0.00022959,2]
[326597900,1715123446174,-150.0,0.00022961,2]
[326597902,1715123446187,-150.0,0.00022961,2]
[326597904,1715123446198,-150.0,0.00022965,2]
[326597906,1715123446208,-150.0,0.00022965,2]
[326597908,1715123446217,-150.0,0.00022968,5]
[326597910,1715123446227,-150.5,0.0002297,15]
[326597912,1715123446236,-150.0,0.0002297,2]
[326597913,1715123446246,-150.0,0.0002297,2]
[326597915,1715123446260,-150.0,0.00022972,2]
[326597917,1715123446271,-150.0,0.00022973,2]
[326597919,1715123446280,-150.0,0.00022976,2]
[326597921,1715123446290,-150.5,0.0002298,15]
[326597923,1715123446299,-150.0,0.0002298,2]
[326597925,1715123446309,-7469.0855416,0.00022984,2]
[326597927,1715123446318,-502.2365039,0.00022984,2]
[326597929,1715123446328,-150.0,0.00022985,2]
[326597931,1715123446338,-150.0,0.00022986,2]
[326597933,1715123446347,-150.5,0.0002299,15]
[326597935,1715123446357,-150.0,0.00022992,2]
[326597937,1715123446367,-150.0,0.00022993,2]
[326597939,1715123446377,-150.0,0.00022994,2]
[326597942,1715123446387,-150.0,0.00022994,2]
[326597944,1715123446397,-150.0,0.00022996,2]
[326597946,1715123446407,-2851.6780206,0.00022997,2]
[326597947,1715123446416,-110587.314194,0.00022997,2]
[326597950,1715123446426,-150.0,0.00022997,2]
[326597952,1715123446435,-15493.4090865,0.00022997,2]
[326597953,1715123446445,-207.66695698,0.00022998,2]
[326597955,1715123446455,-5858.31717383,0.00022998,2]
[326597958,1715123446465,-150.0,0.00022998,2]
[326597960,1715123446474,-217.21750578,0.00022999,2]
[326597962,1715123446484,-841845.42674815,0.00023,4]
[326597964,1715123446494,-1000.0,0.00023,4]
[326597966,1715123446504,-1000.0,0.00023,4]
[326597968,1715123446515,-342.0,0.00023,2]
[326597970,1715123446525,-547.35752792,0.00023,2]
[326597972,1715123446535,-179.79467674,0.00023,2]
[326597974,1715123446545,-346.6840201,0.00023,2]
[326597976,1715123446555,-900.0,0.00023,24]
[326597978,1715123446564,-362.57,0.00023,2]
[326597980,1715123446574,-546.37,0.00023,2]
[326597982,1715123446584,-604.25,0.00023,2]
[326597984,1715123446594,-159.195771,0.00023,14]
[326597986,1715123446603,-414.0,0.00023,11]
[326597988,1715123446613,-1013.52,0.00023,2]
[326597990,1715123446624,-1500.0,0.00023,2]
[326597992,1715123446634,-350.803039,0.00023,2]
[326597994,1715123446644,-318.88,0.00023,2]
[326597996,1715123446654,-150.0,0.00023,3]
[326597998,1715123446663,-150.0,0.00023006,4]
[326598000,1715123446673,-205.16402111,0.00023014,10]
[326598002,1715123446683,-153.87301583,0.00023014,10]
[326598004,1715123446693,-153.87301584,0.00023014,10]
[326598006,1715123446702,-205.16402109,0.00023014,10]
[326598008,1715123446712,-153.87301584,0.00023014,10]
[326598010,1715123446721,-153.87301583,0.00023014,10]
[326598012,1715123446730,-150.0,0.00023081,4]
[326598014,1715123446740,-500.0,0.00023087,2]
[326598016,1715123446750,-500.0,0.00023087,2]
[326598018,1715123446760,-500.0,0.00023087,2]
[326598020,1715123446770,-1107.85,0.00023087,2]
[326598022,1715123446779,-150.0,0.00023101,4]
[326598024,1715123446788,-205.16402111,0.00023123,10]
[326598026,1715123446798,-157.050808,0.00023148,2]
[326598028,1715123446807,-150.0,0.00023156,4]
[326598030,1715123446817,-646.21,0.00023187,2]
[326598032,1715123446827,-597.83,0.00023187,2]
[326598034,1715123446836,-500.0,0.00023187,2]
[326598036,1715123446845,-500.0,0.00023187,2]
[326598038,1715123446855,-742.01,0.00023187,2]
[326598040,1715123446865,-533.49,0.00023187,2]
[326598042,1715123446874,-862.44,0.00023187,2]
[326598044,1715123446884,-500.0,0.00023187,2]
[326598046,1715123446893,-500.0,0.00023187,2]
[326598048,1715123446904,-500.0,0.00023187,2]
[326598050,1715123446915,-1443.74,0.00023187,2]
[326598052,1715123446925,-2034.57,0.00023187,2]
[326598054,1715123446936,-500.0,0.00023187,2]
[326598056,1715123446946,-1140.78,0.00023187,2]
[326598058,1715123446956,-214.87949182,0.00023187,2]
[326598059,1715123446966,-500.0,0.00023187,2]
[326598061,1715123446979,-1000.0,0.000232,2]
[326598063,1715123446989,-205.16402111,0.00023205,10]
[326598065,1715123446998,-150.0,0.00023231,4]
[326598067,1715123447009,-150.0,0.00023271,4]
[326598069,1715123447018,-212.0,0.0002329,2]
[326598071,1715123447028,-150.0,0.00023306,4]
[326598073,1715123447039,-205.16402111,0.00023315,10]
[326598075,1715123447050,-153.87301583,0.00023342,10]
[326598077,1715123447059,-153.87301584,0.00023342,10]
[326598079,1715123447070,-295.49841762,0.00023361,2]
[326598081,1715123447080,-500.0,0.00023361,2]
[326598083,1715123447090,-580.85290248,0.00023361,2]
[326598085,1715123447100,-1107.85,0.00023361,2]
[326598088,1715123447111,-1415.32,0.00023369,4]
[326598090,1715123447121,-150.0,0.00023381,4]
[326598091,1715123447131,-205.16402111,0.00023397,10]
[326598093,1715123447141,-2000.93957158,0.000234,2]
[326598095,1715123447151,-1203.0,0.000234,2]
[326598097,1715123447160,-150.0,0.00023441,4]
[326598099,1715123447176,-157.050808,0.00023448,2]
[326598101,1715123447187,-150.0,0.00023456,4]
[326598103,1715123447198,-646.21,0.00023461,2]
[326598106,1715123447223,-597.83,0.00023461,2]
[326598107,1715123447232,-500.0,0.00023461,2]
[326598109,1715123447242,-500.0,0.00023461,2]
[326598111,1715123447252,-742.01,0.00023461,2]
[326598113,1715123447266,-533.49,0.00023461,2]
[326598115,1715123447276,-862.44,0.00023461,2]
[326598117,1715123447286,-500.0,0.00023461,2]
[326598126,1715123447297,-500.0,0.00023461,2]
[326598132,1715123447308,-500.0,0.00023461,2]
[326598139,1715123447319,-1443.74,0.00023461,2]
[326598146,1715123447329,-2034.57,0.00023461,2]
[326598151,1715123447339,-594.92424464,0.00023461,2]
[326598155,1715123447349,-1140.78,0.00023461,2]
[326598158,1715123447360,-500.0,0.00023461,2]
[326598161,1715123447370,-205.16402111,0.00023479,10]
[326598164,1715123447379,-199.75971536,0.0002348,2]
[326598167,1715123447389,-414.0,0.000235,11]
[326598170,1715123447399,-150.0,0.000235,3]
[326598173,1715123447409,-150.0,0.00023531,4]
[326598176,1715123447419,-598.56594166,0.00023555,2]
[326598178,1715123447430,-150.0,0.00023568,4]
[326598181,1715123447439,-150.0,0.00023568,4]
[326598183,1715123447450,-205.16402111,0.00023589,10]
[326598184,1715123447459,-150.0,0.00023606,4]
[326598185,1715123447469,-150.0,0.00023611,4]
[326598186,1715123447480,-500.0,0.00023635,2]
[326598187,1715123447490,-1107.85,0.00023635,2]
[326598188,1715123447499,-500.0,0.00023662,2]
[326598189,1715123447513,-500.0,0.00023671,2]
[326598190,1715123447524,-205.16402111,0.00023671,10]
[326598191,1715123447533,-165.0,0.0002368,13]
[326598192,1715123447543,-500.0,0.0002368,2]
[326598193,1715123447553,-150.0,0.0002368,4]
[326598194,1715123447563,-10117.98303871,0.00023682,2]
[326598195,1715123447572,-500.0,0.00023689,2]
[326598196,1715123447582,-500.0,0.00023698,2]
[326598197,1715123447592,-500.0,0.00023706,2]
[326598198,1715123447602,-500.0,0.00023706,2]
[326598199,1715123447612,-500.0,0.00023715,2]
[326598200,1715123447623,-500.0,0.00023715,2]
[326598201,1715123447633,-500.0,0.00023724,2]
[326598202,1715123447644,-500.0,0.00023724,2]
[326598203,1715123447654,-500.0,0.00023733,2]
[326598204,1715123447663,-500.0,0.00023733,2]
[326598205,1715123447674,-500.0,0.00023733,2]
[326598206,1715123447684,-646.21,0.00023735,2]
[326598207,1715123447695,-597.83,0.00023735,2]
[326598208,1715123447705,-500.0,0.00023735,2]
[326598209,1715123447715,-500.0,0.00023735,2]
[326598210,1715123447725,-742.01,0.00023735,2]
[326598211,1715123447735,-533.49,0.00023735,2]
[326598212,1715123447745,-862.44,0.00023735,2]
[326598213,1715123447755,-232.25308631,0.00023735,2]
[326598214,1715123447768,-224.3032418,0.00023735,2]
[326598215,1715123447779,-500.0,0.00023735,2]
[326598216,1715123447788,-1443.74,0.00023735,2]
[326598217,1715123447798,-2034.57,0.00023735,2]
[326598218,1715123447808,-1140.78,0.00023735,2]
[326598219,1715123447818,-500.0,0.00023735,2]
[326598220,1715123447828,-500.0,0.00023742,2]
[326598221,1715123447837,-500.0,0.00023742,2]
[326598222,1715123447847,-500.0,0.00023742,2]
[326598223,1715123447858,-157.050808,0.00023748,2]
[326598224,1715123447867,-500.0,0.0002375,2]
[326598225,1715123447878,-500.0,0.0002375,2]
[326598226,1715123447888,-500.0,0.0002375,2]
[326598227,1715123447898,-150.0,0.00023755,4]
[326598228,1715123447908,-500.0,0.00023759,2]
[326598229,1715123447918,-500.0,0.00023759,2]
[326598230,1715123447928,-500.0,0.00023759,2]
[326598231,1715123447938,-500.0,0.00023768,2]
[326598232,1715123447949,-500.0,0.00023768,2]
[326598233,1715123447959,-500.0,0.00023768,2]
[326598234,1715123447968,-500.0,0.00023777,2]
[326598235,1715123447982,-500.0,0.00023777,2]
[326598236,1715123447991,-500.0,0.00023777,2]
[326598237,1715123448001,-150.0,0.0002378,4]
[326598238,1715123448013,-500.0,0.00023786,2]
[326598239,1715123448023,-500.0,0.00023786,2]
[326598240,1715123448032,-500.0,0.00023786,2]
[326598241,1715123448042,-500.0,0.00023794,2]
[326598242,1715123448052,-169.20297748,0.00023794,2]
[326598243,1715123448062,-500.0,0.00023794,2]
[326598244,1715123448072,-500.0,0.00023794,2]
[326598245,1715123448083,-500.0,0.00023794,2]
[326598246,1715123448093,-150.0,0.0002383,4]
[326598247,1715123448103,-212.0,0.0002384,2]
[326598248,1715123448113,-362.57,0.000239,2]
[326598249,1715123448123,-546.37,0.000239,2]
[326598250,1715123448133,-604.25,0.000239,2]
[326598251,1715123448143,-150.0,0.00023905,4]
[326598252,1715123448154,-500.0,0.00023909,2]
[326598253,1715123448164,-1107.85,0.00023909,2]
[326598254,1715123448180,-152.0,0.00023919,4]
[326598255,1715123448190,-150.0,0.0002395,4]
[326598256,1715123448201,-150.0,0.0002398,4]
[326598257,1715123448218,-432.36004694,0.00024,2]
[326598258,1715123448228,-1000.0,0.00024,4]
[326598259,1715123448238,-1000.0,0.00024,4]
[326598260,1715123448248,-900.0,0.00024,25]
[326598261,1715123448260,-5533.41,0.00024,2]
[326598262,1715123448271,-900.0,0.00024,3]
[326598263,1715123448281,-414.0,0.00024,12]
[326598264,1715123448291,-150.0,0.00024,4]
[326598265,1715123448301,-646.21,0.00024009,2]
[326598266,1715123448311,-597.83,0.00024009,2]
[326598267,1715123448321,-500.0,0.00024009,2]
[326598268,1715123448330,-500.0,0.00024009,2]
[326598269,1715123448340,-742.01,0.00024009,2]
[326598270,1715123448351,-533.49,0.00024009,2]
[326598271,1715123448361,-862.44,0.00024009,2]
[326598272,1715123448371,-470.35630111,0.00024009,2]
[326598273,1715123448382,-1443.74,0.00024009,2]
[326598274,1715123448392,-2034.57,0.00024009,2]
[326598275,1715123448403,-1140.78,0.00024009,2]
[326598276,1715123448414,-528.12324116,0.00024009,2]
[326598277,1715123448424,-150.0,0.00024055,4]
[326598278,1715123448434,-150.0,0.0002412,4]
[326598279,1715123448444,-159.95281396,0.00024125,2]
[326598280,1715123448454,-150.0,0.0002413,4]
[326598281,1715123448464,-157.050718,0.00024148,2]
[326598282,1715123448474,-318.88,0.00024155,2]
[326598283,1715123448483,-150.0,0.00024166,2]
[326598284,1715123448494,-500.0,0.00024183,2]
[326598285,1715123448504,-1107.85,0.00024183,2]
[326598286,1715123448516,-150.0,0.00024205,4]
[326598287,1715123448525,-150.0,0.00024205,4]
[326598288,1715123448535,-150.0,0.00024205,4]
[326598289,1715123448545,-180.0,0.0002423,2]
[326598290,1715123448555,-150.0,0.0002428,4]
[326598291,1715123448566,-646.21,0.00024283,2]
[326598292,1715123448576,-597.83,0.00024283,2]
[326598293,1715123448586,-184.80821987,0.00024283,2]
[326598294,1715123448596,-432.41005615,0.00024283,2]
[326598295,1715123448606,-742.01,0.00024283,2]
[326598296,1715123448617,-533.49,0.00024283,2]
[326598297,1715123448627,-862.44,0.00024283,2]
[326598298,1715123448637,-1443.74,0.00024283,2]
[326598299,1715123448647,-2034.57,0.00024283,2]
[326598300,1715123448658,-1140.78,0.00024283,2]
[326598301,1715123448668,-150.0,0.0002429,4]
[326598302,1715123448678,-150.0,0.00024355,4]
[326598303,1715123448687,-212.0,0.0002439,2]
[326598304,1715123448697,-150.0,0.0002443,4]
[326598305,1715123448708,-157.050805,0.00024448,2]
[326598306,1715123448719,-170.87416386,0.00024457,2]
[326598307,1715123448729,-1107.85,0.00024457,2]
[326598308,1715123448739,-150.0,0.0002446,4]
[326598309,1715123448750,-500.0,0.00024488,2]
[326598310,1715123448762,-500.0,0.00024497,2]
[326598311,1715123448772,-1004.2750184,0.000245,2]
[326598312,1715123448782,-414.0,0.000245,12]
[326598313,1715123448792,-150.0,0.000245,4]
[326598314,1715123448803,-150.0,0.00024505,4]
[326598315,1715123448815,-500.0,0.00024506,2]
[326598316,1715123448825,-500.0,0.00024515,2]
[326598317,1715123448835,-500.0,0.00024523,2]
[326598318,1715123448845,-500.0,0.00024532,2]
[326598319,1715123448855,-500.0,0.00024541,2]
[326598320,1715123448865,-500.0,0.0002455,2]
[326598321,1715123448876,-646.21,0.00024557,2]
[326598322,1715123448886,-597.83,0.00024557,2]
[326598323,1715123448896,-742.01,0.00024557,2]
[326598324,1715123448906,-533.49,0.00024557,2]
[326598325,1715123448918,-862.44,0.00024557,2]
[326598326,1715123448929,-1443.74,0.00024557,2]
[326598327,1715123448939,-2034.57,0.00024557,2]
[326598328,1715123448950,-1140.78,0.00024557,2]
[326598329,1715123448960,-10117.98303871,0.00024573,2]
[326598330,1715123448970,-150.0,0.0002458,4]
[326598331,1715123448982,-414.71,0.00024591,2]
[326598332,1715123448992,-1573.98,0.00024591,2]
[326598333,1715123449003,-828.89,0.00024591,2]
[326598334,1715123449014,-150.0,0.0002463,4]
[326598335,1715123449024,-194.49382163,0.00024652,2]
[326598336,1715123449034,-109463.77898944,0.00024652,2]
[326598337,1715123449044,-217.21750578,0.00024654,2]
[326598338,1715123449054,-150.0,0.00024655,4]
[326598339,1715123449065,-139621.84026704,0.00024655,2]
[326598340,1715123449075,-155.48306794,0.00024655,2]
[326598341,1715123449087,-217.21750578,0.00024655,2]
[326598342,1715123449098,-598.56594166,0.00024655,2]
[326598343,1715123449108,-629442.8126299,0.00024655,2]
[326598344,1715123449118,-496718.09965745,0.00024656,2]
[326598345,1715123449127,-151.0,0.00024656,7]
[326598346,1715123449137,-151.0,0.00024656,7]
[326598347,1715123449147,-151.0,0.00024656,7]
[326598348,1715123449157,-151.0,0.00024656,7]
[326598349,1715123449169,-151.0,0.00024656,7]
[326598350,1715123449181,-153.337846,0.00024656,7]
[326598351,1715123449191,-151.601556,0.00024656,7]
[326598352,1715123449200,-151.0,0.00024656,7]
[326598353,1715123449210,-151.0,0.00024656,7]
[326598354,1715123449224,-181.719068,0.00024656,7]
[326598355,1715123449235,-151.0,0.00024656,7]
[326598356,1715123449245,-151.0,0.00024656,7]
[326598357,1715123449388,-575.46693,0.00024656,7]
[326598358,1715123449399,-575.46693,0.00024656,7]
[326598359,1715123449408,-382.926552,0.00024656,7]
[326598360,1715123449418,-382.926552,0.00024656,7]
[326598361,1715123449428,-151.0,0.00024656,7]
[326598362,1715123449438,-151.0,0.00024656,7]
[326598363,1715123449448,-151.0,0.00024656,7]
[326598364,1715123449458,-154.715521,0.00024656,7]
[326598365,1715123449469,-151.0,0.00024656,7]
[326598366,1715123449478,-151.0,0.00024656,7]
[326598367,1715123449488,-151.0,0.00024656,7]
[326598368,1715123449498,-152.508439,0.00024656,7]
[326598369,1715123449510,-151.0,0.00024656,7]
[326598370,1715123449520,-151.971388,0.00024656,7]
[326598371,1715123449529,-151.0,0.00024656,7]
[326598372,1715123449539,-641.252109,0.00024656,7]
[326598373,1715123449549,-641.252109,0.00024656,7]
[326598374,1715123449559,-151.0,0.00024656,7]
[326598375,1715123449568,-152.27017,0.00024656,7]
[326598376,1715123449578,-151.0,0.00024656,7]
[326598377,1715123449587,-151.0,0.00024656,7]
[326598378,1715123449597,-151.0,0.00024656,7]
[326598379,1715123449607,-151.0,0.00024656,7]
[326598380,1715123449618,-151.0,0.00024656,7]
[326598381,1715123449627,-151.0,0.00024656,7]
[326598382,1715123449637,-151.0,0.00024656,7]
[326598383,1715123449647,-154.011408,0.00024656,7]
[326598384,1715123449657,-151.0,0.00024656,7]
[326598385,1715123449666,-151.0,0.00024656,7]
[326598386,1715123449675,-2105.54130709,0.00024657,14]
[326598387,1715123449685,-680.62,0.00024657,2]
[326598388,1715123449694,-680.62,0.00024657,2]
[326598389,1715123449704,-680.62,0.00024657,2]
[326598390,1715123449713,-680.62,0.00024657,2]
[326598391,1715123449722,-680.62,0.00024657,2]
[326598392,1715123449732,-680.62,0.00024657,2]
[326598393,1715123449741,-680.62,0.00024657,2]
[326598394,1715123449751,-680.62,0.00024657,2]